fUSD/lending_fUSD_20260420
["ID","MTS","AMOUNT","RATE_DAILY","PERIOD"]
[420860163,1776650109748,-500.0,8.555e-05,2]
[420860164,1776650109783,-500.0,8.555e-05,2]
[420860165,1776650109820,-500.0,8.555e-05,2]
[420860166,1776650109857,-500.0,8.555e-05,2]
[420860167,1776650109895,-500.0,8.555e-05,2]
[420860168,1776650109931,-500.0,8.555e-05,2]
[420860169,1776650109967,-500.0,8.555e-05,2]
[420860170,1776650110204,-153.96221872,8.555e-05,2]
[420860171,1776650110244,-500.0,8.555e-05,2]
[420860172,1776650110280,-500.0,8.555e-05,2]
[420860173,1776650110317,-500.0,8.555e-05,2]
[420860174,1776650110354,-500.0,8.555e-05,2]
[420860175,1776650110390,-500.0,8.555e-05,2]
[420860176,1776650110426,-500.0,8.555e-05,2]
[420860177,1776650110469,-500.0,8.555e-05,2]
[420860178,1776650110508,-500.0,8.555e-05,2]
[420860179,1776650110546,-500.0,8.555e-05,2]
[420860180,1776650110585,-192.08556256,8.555e-05,2]
[420860181,1776650110971,-307.91443744,8.555e-05,2]
[420860182,1776650111007,-500.0,8.555e-05,2]
[420860183,1776650111043,-500.0,8.555e-05,2]
[420860184,1776650111079,-500.0,8.555e-05,2]
[420860185,1776650111114,-500.0,8.555e-05,2]
[420860186,1776650111151,-500.0,8.555e-05,2]
[420860187,1776650111185,-500.0,8.555e-05,2]
[420860188,1776650111220,-500.0,8.555e-05,2]
[420860189,1776650111255,-500.0,8.555e-05,2]
[420860190,1776650111291,-500.0,8.555e-05,2]
[420860191,1776650111440,-500.0,8.555e-05,2]
[420860192,1776650111480,-500.0,8.555e-05,2]
[420860193,1776650111519,-500.0,8.555e-05,2]
[420860194,1776650111557,-500.0,8.555e-05,2]
[420860195,1776650111594,-500.0,8.555e-05,2]
[420860196,1776650111630,-500.0,8.555e-05,2]
[420860197,1776650111666,-500.0,8.555e-05,2]
[420860198,1776650111702,-226.9040632,8.555e-05,2]
[420860199,1776650111733,-500.0,8.555e-05,2]
[420860200,1776650111764,-500.0,8.555e-05,2]
[420860201,1776650111795,-46.2018736,8.555e-05,2]
[420860202,1776650111833,-453.7981264,8.555e-05,2]
[420860203,1776650111865,-404.52584506,8.555e-05,2]
[420860204,1776650111906,-429.3221551,8.555e-05,2]
[420860205,1776650111943,-500.0,8.555e-05,2]
[420860206,1776650111982,-500.0,8.555e-05,2]
[420860207,1776650112018,-500.0,8.555e-05,2]
[420860208,1776650112054,-200.0,8.555e-05,2]
[420860209,1776650112089,-500.0,8.555e-05,2]
[420860210,1776650112124,-500.0,8.555e-05,2]
[420860211,1776650112153,-500.0,8.555e-05,2]
[420860212,1776650112182,-500.0,8.555e-05,2]
[420860213,1776650112236,-500.0,8.555e-05,2]
[420860214,1776650112266,-300.0,8.555e-05,2]
[420860215,1776650112296,-160.56833518,8.555e-05,2]
[420860216,1776650122404,-10000.01,8.556e-05,2]
[420860217,1776650122420,-10000.01,8.556e-05,2]
[420860218,1776650122435,-10000.01,8.556e-05,2]
[420860219,1776650122450,-10000.01,8.556e-05,2]
[420860220,1776650122466,-10000.01,8.556e-05,2]
[420860221,1776650123780,-10000.01,8.556e-05,2]
[420860222,1776650129793,-10000.01,8.556e-05,2]
[420860223,1776650129910,-10000.01,8.556e-05,2]
[420860224,1776650130038,-10000.01,8.556e-05,2]
[420860225,1776650172196,-293.5,8.256e-05,2]
[420860226,1776650172225,-181.1532054,8.555e-05,2]
[420860227,1776650172253,-261.0,8.555e-05,2]
[420860228,1776650172282,-300.0,8.555e-05,2]
[420860229,1776650188497,162.7,0.000165,30]
[420860230,1776650222157,150.0,8.555e-05,2]
[420860231,1776650240647,2778.7035892,8.456e-05,2]
[420860232,1776650240670,5000.01,8.456e-05,2]
[420860233,1776650240692,5000.01,8.456e-05,2]
[420860234,1776650240714,5000.01,8.456e-05,2]
[420860235,1776650240736,5000.01,8.456e-05,2]
[420860236,1776650241537,-2071.3064108,8.456e-05,2]
[420860237,1776650244168,-5000.01,8.456e-05,2]
[420860238,1776650244211,-5000.01,8.456e-05,2]
[420860239,1776650244324,-5000.01,8.456e-05,2]
[420860240,1776650244457,-5000.01,8.456e-05,2]
[420860241,1776650244581,-5000.01,8.456e-05,2]
[420860242,1776650247334,-5000.01,8.456e-05,2]
[420860243,1776650248295,-5000.01,8.456e-05,2]
[420860244,1776650248333,-5000.01,8.456e-05,2]
[420860245,1776650248353,-5000.01,8.456e-05,2]
[420860246,1776650248371,-5000.01,8.456e-05,2]
[420860247,1776650252868,-5000.01,8.456e-05,2]
[420860248,1776650252892,-5000.01,8.456e-05,2]
[420860249,1776650252926,-5000.01,8.456e-05,2]
[420860250,1776650252951,-5000.01,8.456e-05,2]
[420860251,1776650252967,-3952.7586,8.456e-05,2]
[420860252,1776650258505,195.1704,8.455e-05,2]
[420860253,1776650266263,1322.091238,8.178e-05,2]
[420860254,1776650281629,300.0,8.555e-05,2]
[420860255,1776650288803,1701.0,8.178e-05,3]
[420860256,1776650295096,156.0,8.178e-05,3]
[420860257,1776650300517,299.35,8.256e-05,2]
[420860258,1776650339402,261.0,8.555e-05,2]
[420860259,1776650343822,300.0,8.554e-05,2]
[420860260,1776650346847,465.398362,8.256e-05,3]
[420860261,1776650346871,1178.601638,8.256e-05,3]
[420860262,1776650356037,156.0,8.256e-05,3]
[420860263,1776650399400,256.0,8.555e-05,2]
[420860265,1776650401191,300.0,8.554e-05,2]
[420860266,1776650401221,300.0,8.554e-05,2]
[420860267,1776650401251,300.0,8.554e-05,2]
[420860268,1776650401282,1200.0,8.554e-05,2]
[420860269,1776650401998,150.0,8.554e-05,2]
[420860271,1776650431939,394.49566316,7.888e-05,2]
[420860272,1776650458513,152.0,8.46e-05,7]
[420860273,1776650461584,152.0,8.46e-05,7]
[420860274,1776650461673,152.0,8.46e-05,7]
[420860275,1776650463199,-1588.0,8.555e-05,3]
[420860276,1776650463230,-153.0,8.555e-05,3]
[420860277,1776650463261,-156.0,8.555e-05,3]
[420860278,1776650463293,-163.0,8.555e-05,3]
[420860279,1776650470458,1533.0,8.555e-05,3]
[420860280,1776650490264,150.0,8.256e-05,2]
[420860281,1776650491444,156.0,8.555e-05,3]
[420860282,1776650510066,195.58,8.357e-05,2]
[420860283,1776650513345,163.52,8.555e-05,2]
[420860284,1776650554895,169.06,8.256e-05,2]
[420860285,1776650570469,450.0,0.000165,120]
[420860286,1776650582169,150.0,8.554e-05,2]
[420860287,1776650593903,300.0,8.554e-05,2]
[420860288,1776650594771,1456.0,8.555e-05,3]
[420860289,1776650606500,-339.11212143,8.555e-05,2]
[420860290,1776650606530,-452.04485617,8.555e-05,2]
[420860291,1776650606566,-500.0,8.555e-05,2]
[420860292,1776650606601,-500.0,8.555e-05,2]
[420860293,1776650606637,-500.0,8.555e-05,2]
[420860294,1776650606671,-500.0,8.555e-05,2]
[420860295,1776650606706,-500.0,8.555e-05,2]
[420860296,1776650606742,-500.0,8.555e-05,2]
[420860297,1776650606776,-500.0,8.555e-05,2]
[420860298,1776650606812,-500.0,8.555e-05,2]
[420860299,1776650606853,196.08,8.357e-05,2]
[420860300,1776650606909,-500.0,8.555e-05,2]
[420860301,1776650606945,-500.0,8.555e-05,2]
[420860302,1776650606981,-500.0,8.555e-05,2]
[420860303,1776650607015,-500.0,8.555e-05,2]
[420860304,1776650607050,-500.0,8.555e-05,2]
[420860305,1776650607085,-500.0,8.555e-05,2]
[420860306,1776650607124,-500.0,8.555e-05,2]
[420860307,1776650607160,-500.0,8.555e-05,2]
[420860308,1776650607199,-500.0,8.555e-05,2]
[420860309,1776650607235,-500.0,8.555e-05,2]
[420860310,1776650607289,-500.0,8.555e-05,2]
[420860311,1776650607325,-500.0,8.555e-05,2]
[420860312,1776650607363,-500.0,8.555e-05,2]
[420860313,1776650607398,-500.0,8.555e-05,2]
[420860314,1776650607434,-500.0,8.555e-05,2]
[420860315,1776650607469,-500.0,8.555e-05,2]
[420860316,1776650607999,-500.0,8.555e-05,2]
[420860317,1776650608037,-500.0,8.555e-05,2]
[420860318,1776650608073,-500.0,8.555e-05,2]
[420860319,1776650608108,-500.0,8.555e-05,2]
[420860320,1776650608162,-500.0,8.555e-05,2]
[420860321,1776650608198,-500.0,8.555e-05,2]
[420860322,1776650608232,-500.0,8.555e-05,2]
[420860323,1776650608267,-548.56027416,8.555e-05,2]
[420860324,1776650608302,-500.0,8.555e-05,2]
[420860325,1776650608337,-500.0,8.555e-05,2]
[420860326,1776650608372,-500.0,8.555e-05,2]
[420860327,1776650608407,-500.0,8.555e-05,2]
[420860328,1776650608444,-500.0,8.555e-05,2]
[420860329,1776650608479,-402.88945168,8.555e-05,2]
[420860330,1776650611290,-97.11054832,8.555e-05,2]
[420860331,1776650611327,-500.0,8.555e-05,2]
[420860332,1776650611364,-500.0,8.555e-05,2]
[420860333,1776650611399,-500.0,8.555e-05,2]
[420860334,1776650611436,-500.0,8.555e-05,2]
[420860335,1776650611472,-500.0,8.555e-05,2]
[420860336,1776650611509,-500.0,8.555e-05,2]
[420860337,1776650611545,-500.0,8.555e-05,2]
[420860338,1776650611582,-500.0,8.555e-05,2]
[420860339,1776650611618,-500.0,8.555e-05,2]
[420860340,1776650611653,-305.78890336,8.555e-05,2]
[420860341,1776650611723,-194.21109664,8.555e-05,2]
[420860342,1776650611763,-450.0,8.555e-05,2]
[420860343,1776650611798,-500.0,8.555e-05,2]
[420860344,1776650611833,-500.0,8.555e-05,2]
[420860345,1776650611863,-500.0,8.555e-05,2]
[420860346,1776650611893,-500.0,8.555e-05,2]
[420860347,1776650611924,-333.16809154,8.555e-05,2]
[420860348,1776650611952,-374.91880667,8.555e-05,2]
[420860349,1776650611988,-500.0,8.555e-05,2]
[420860350,1776650612017,-500.0,8.555e-05,2]
[420860351,1776650612046,-160.2669701,8.555e-05,2]
[420860352,1776650612075,-292.637621,8.555e-05,2]
[420860353,1776650612107,-148.43010596,8.555e-05,2]
[420860354,1776650620270,150.0,8.256e-05,2]
[420860355,1776650647820,1411.0,8.555e-05,3]
[420860356,1776650701114,162.0,8.555e-05,2]
[420860357,1776650701146,1200.0,8.555e-05,2]
[420860358,1776650701368,300.0,8.555e-05,2]
[420860359,1776650702372,150.0,8.458e-05,2]
[420860360,1776650702430,150.0,8.552e-05,2]
[420860361,1776650710144,153.0,8.555e-05,3]
[420860362,1776650718343,3200.0,0.000165,30]
[420860363,1776650727084,191.61,8.357e-05,2]
[420860364,1776650736982,150.13037662,8.458e-05,2]
[420860365,1776650737012,150.13681991,8.458e-05,2]
[420860366,1776650737609,150.0,8.458e-05,2]
[420860367,1776650738815,181.86,8.357e-05,2]
[420860368,1776650742076,150.37161379,8.458e-05,2]
[420860369,1776650742115,150.0,8.458e-05,2]
[420860370,1776650742372,150.0,8.458e-05,2]
[420860371,1776650744692,150.0,8.458e-05,2]
[420860372,1776650749605,150.0,8.458e-05,2]
[420860373,1776650750232,150.48265423,8.458e-05,2]
[420860374,1776650750268,6160.41853545,8.555e-05,2]
[420860375,1776650750291,10000.01,8.555e-05,2]
[420860376,1776650750314,3439.01,8.555e-05,2]
[420860377,1776650750337,5000.01,8.555e-05,2]
[420860378,1776650750359,5000.01,8.555e-05,2]
[420860379,1776650750383,5000.01,8.555e-05,2]
[420860380,1776650750407,5000.01,8.555e-05,2]
[420860381,1776650750429,5000.01,8.555e-05,2]
[420860382,1776650750451,5000.01,8.555e-05,2]
[420860383,1776650750473,5000.01,8.555e-05,2]
[420860384,1776650887458,-150.0,8.22e-05,2]
[420860386,1776650925910,-199.57,8.356e-05,2]
[420860387,1776650925940,-593.402,8.456e-05,2]
[420860388,1776650926233,-657.008,8.456e-05,2]
[420860389,1776650926338,-1314.016,8.456e-05,2]
[420860390,1776650926492,-2371.978,8.456e-05,2]
[420860391,1776650937895,150.0,8.22e-05,2]
[420860392,1776650946190,106.054,8.338e-05,2]
[420860393,1776650946214,2927.50593546,8.338e-05,2]
[420860394,1776650992073,500.0,7.914e-05,2]
[420860395,1776651003236,150.0,8.22e-05,2]
[420860396,1776651005962,1378.0,7.914e-05,3]
[420860397,1776651007175,44.50406454,7.914e-05,3]
[420860398,1776651007200,108.49593546,7.914e-05,3]
[420860399,1776651015934,180.0,7.914e-05,3]
[420860402,1776651031539,-150.0,8.458e-05,2]
[420860403,1776651031549,-150.0,8.458e-05,2]
[420860404,1776651031559,-150.0,8.458e-05,2]
[420860405,1776651031569,-155.87277336,8.506e-05,2]
[420860406,1776651031579,-150.0,8.52e-05,2]
[420860407,1776651031588,-504.65209864,8.533e-05,2]
[420860408,1776651031598,-501.62076307,8.533e-05,2]
[420860409,1776651031608,-500.0,8.533e-05,2]
[420860410,1776651031617,-56.82267599,8.533e-05,2]
[420860411,1776651031633,-400.0,8.533e-05,2]
[420860412,1776651031645,-43.17732401,8.533e-05,2]
[420860413,1776651031655,-500.0,8.533e-05,2]
[420860414,1776651031664,-99.12089687,8.553e-05,2]
[420860415,1776651031676,-50.87910313,8.553e-05,2]
[420860416,1776651031686,-524.87089687,8.554e-05,2]
[420860417,1776651031710,-45.4581304,8.554e-05,2]
[420860418,1776651031719,-321.30039854,8.554e-05,2]
[420860419,1776651031729,-570.32902727,8.554e-05,2]
[420860420,1776651031739,-570.32902727,8.554e-05,2]
[420860421,1776651031748,-570.32902727,8.554e-05,2]
[420860422,1776651031758,-570.32902727,8.554e-05,2]
[420860423,1776651031768,-570.32902727,8.554e-05,2]
[420860424,1776651031778,-570.32902727,8.554e-05,2]
[420860425,1776651031788,-570.32902727,8.554e-05,2]
[420860426,1776651031797,-570.32902727,8.554e-05,2]
[420860427,1776651031807,-570.32902727,8.554e-05,2]
[420860428,1776651031817,-570.32902727,8.554e-05,2]
[420860429,1776651031826,-570.32902727,8.554e-05,2]
[420860430,1776651031836,-570.32902727,8.554e-05,2]
[420860431,1776651031846,-570.32902727,8.554e-05,2]
[420860432,1776651031855,-570.32902727,8.554e-05,2]
[420860433,1776651031864,-570.32902727,8.554e-05,2]
[420860434,1776651031874,-570.32902727,8.554e-05,2]
[420860435,1776651031883,-570.32902727,8.554e-05,2]
[420860436,1776651031894,-570.32902727,8.554e-05,2]
[420860437,1776651031903,-570.32902727,8.554e-05,2]
[420860438,1776651031913,-570.32902727,8.554e-05,2]
[420860440,1776651031922,-570.32902727,8.554e-05,2]
[420860442,1776651031933,-570.32902727,8.554e-05,2]
[420860444,1776651031943,-570.32902727,8.554e-05,2]
[420860446,1776651031953,-570.32902727,8.554e-05,2]
[420860448,1776651031962,-570.32902727,8.554e-05,2]
[420860450,1776651031972,-570.32902727,8.554e-05,2]
[420860452,1776651031982,-570.32902727,8.554e-05,2]
[420860454,1776651031991,-570.32902727,8.554e-05,2]
[420860456,1776651032001,-570.32902727,8.554e-05,2]
[420860458,1776651032011,-570.32902727,8.554e-05,2]
[420860460,1776651032020,-570.32902727,8.554e-05,2]
[420860462,1776651032030,-570.32902727,8.554e-05,2]
[420860464,1776651032040,-570.32902727,8.554e-05,2]
[420860466,1776651032050,-570.32902727,8.554e-05,2]
[420860468,1776651032060,-570.32902727,8.554e-05,2]
[420860470,1776651032069,-570.32902727,8.554e-05,2]
[420860472,1776651032079,-570.32902727,8.554e-05,2]
[420860474,1776651032089,-570.32902727,8.554e-05,2]
[420860476,1776651032099,-570.32902727,8.554e-05,2]
[420860478,1776651032108,-570.32902727,8.554e-05,2]
[420860480,1776651032117,-570.32902727,8.554e-05,2]
[420860482,1776651032127,-570.32902727,8.554e-05,2]
[420860484,1776651032137,-570.32902727,8.554e-05,2]
[420860485,1776651032146,-471.15090425,8.554e-05,2]
[420860487,1776651032159,-99.17812302,8.554e-05,2]
[420860489,1776651032169,-570.32902727,8.554e-05,2]
[420860491,1776651032179,-570.32902727,8.554e-05,2]
[420860493,1776651032188,-570.32902727,8.554e-05,2]
[420860495,1776651032198,-570.32902727,8.554e-05,2]
[420860496,1776651032207,-570.32902727,8.554e-05,2]
[420860497,1776651032217,-570.32902727,8.554e-05,2]
[420860498,1776651032227,-570.32902727,8.554e-05,2]
[420860499,1776651032236,-570.32902727,8.554e-05,2]
[420860500,1776651032245,-570.32902727,8.554e-05,2]
[420860501,1776651032255,-570.32902727,8.554e-05,2]
[420860502,1776651032264,-570.32902727,8.554e-05,2]
[420860503,1776651032274,-570.32902727,8.554e-05,2]
[420860504,1776651032283,-1464.50250342,8.554e-05,2]
[420860505,1776651032293,-0.83831666,8.554e-05,2]
[420860506,1776651032308,-665.72995843,8.554e-05,2]
[420860507,1776651032324,-797.93422833,8.554e-05,2]
[420860508,1776651032334,-1464.50250342,8.554e-05,2]
[420860509,1776651032344,-1464.50250342,8.554e-05,2]
[420860510,1776651032355,-1464.50250342,8.554e-05,2]
[420860511,1776651032365,-1464.50250342,8.554e-05,2]
[420860512,1776651032374,-1464.50250342,8.554e-05,2]
[420860513,1776651032384,-1464.50250342,8.554e-05,2]
[420860514,1776651032393,-1464.50250342,8.554e-05,2]
[420860515,1776651032403,-1464.50250342,8.554e-05,2]
[420860516,1776651032412,-1464.50250342,8.554e-05,2]
[420860517,1776651032421,-1464.50250342,8.554e-05,2]
[420860518,1776651032431,-1464.50250342,8.554e-05,2]
[420860519,1776651032445,-1464.50250342,8.554e-05,2]
[420860520,1776651032455,-1464.50250342,8.554e-05,2]
[420860521,1776651032464,-1464.50250342,8.554e-05,2]
[420860522,1776651032474,-1464.50250342,8.554e-05,2]
[420860523,1776651032484,-1464.50250342,8.554e-05,2]
[420860524,1776651032494,-1464.50250342,8.554e-05,2]
[420860525,1776651032504,-1464.50250342,8.554e-05,2]
[420860526,1776651032514,-1464.50250342,8.554e-05,2]
[420860527,1776651032524,-1464.50250342,8.554e-05,2]
[420860528,1776651032535,-1464.50250342,8.554e-05,2]
[420860529,1776651032545,-1464.50250342,8.554e-05,2]
[420860530,1776651032555,-1464.50250342,8.554e-05,2]
[420860531,1776651032564,-1464.50250342,8.554e-05,2]
[420860532,1776651032575,-1464.50250342,8.554e-05,2]
[420860533,1776651032585,-1464.50250342,8.554e-05,2]
[420860534,1776651032595,-1464.50250342,8.554e-05,2]
[420860535,1776651032605,-1464.50250342,8.554e-05,2]
[420860536,1776651032615,-570.32902727,8.554e-05,2]
[420860537,1776651032624,-203741.90886365,8.555e-05,2]
[420860538,1776651032634,-163.0,8.555e-05,3]
[420860539,1776651032644,-500.0,8.555e-05,2]
[420860540,1776651032654,-500.0,8.555e-05,2]
[420860541,1776651032664,-500.0,8.555e-05,2]
[420860542,1776651032674,-224.71404859,8.555e-05,2]
[420860543,1776651032685,-472.96522016,8.555e-05,2]
[420860544,1776651032695,-500.0,8.555e-05,2]
[420860545,1776651032704,-157.17730268,8.555e-05,2]
[420860546,1776651032714,-500.0,8.555e-05,2]
[420860547,1776651032723,-433.21766408,8.555e-05,2]
[420860548,1776651032733,-307.07500337,8.555e-05,2]
[420860549,1776651032742,-190.51,8.556e-05,2]
[420860550,1776651032752,-250.0,8.556e-05,2]
[420860551,1776651032761,-150.0,8.645e-05,2]
[420860552,1776651032771,-2000.0,8.646e-05,2]
[420860553,1776651032781,-1378.0,8.655e-05,3]
[420860554,1776651032792,-2633.787,8.658e-05,2]
[420860555,1776651032802,-173.596,8.658e-05,2]
[420860556,1776651032811,-150.0,8.739e-05,2]
[420860557,1776651032821,-150.0,8.771e-05,2]
[420860558,1776651032831,-150.0,8.82e-05,2]
[420860559,1776651032841,-150.0,8.833e-05,2]
[420860560,1776651032851,-500.0,8.9e-05,3]
[420860561,1776651032861,-150.0,8.927e-05,2]
[420860562,1776651032871,-150.0,8.927e-05,2]
[420860563,1776651032880,-150.0,8.927e-05,2]
[420860564,1776651032890,-150.0,8.927e-05,2]
[420860565,1776651032899,-150.0,8.927e-05,2]
[420860566,1776651032909,-150.0,8.927e-05,2]
[420860567,1776651032918,-1100.0,9e-05,3]
[420860568,1776651032928,-958.3900247,9.021e-05,2]
[420860569,1776651032938,-150.0,9.021e-05,2]
[420860570,1776651032948,-5000.0,9.042e-05,2]
[420860571,1776651032958,-150.0,9.084e-05,2]
[420860572,1776651032967,-153.0,9.088e-05,3]
[420860573,1776651032976,-150.0,9.115e-05,2]
[420860574,1776651032986,-150.0,9.12e-05,2]
[420860575,1776651032996,-4248.24,9.124e-05,2]
[420860576,1776651033006,-670.58624095,9.125e-05,2]
[420860577,1776651033015,-151.0,9.125e-05,2]
[420860578,1776651033025,-747.43603349,9.125e-05,2]
[420860579,1776651033034,-15473.94236572,9.185e-05,2]
[420860580,1776651033044,-150.0,9.209e-05,2]
[420860581,1776651033054,-150.0,9.303e-05,2]
[420860582,1776651033063,-5000.0,9.303e-05,2]
[420860583,1776651033073,-300.0,9.303e-05,2]
[420860584,1776651033082,-194.80530298,9.303e-05,2]
[420860585,1776651033092,-250.0,9.303e-05,2]
[420860586,1776651033101,-1378.0,9.397e-05,3]
[420860587,1776651033111,-284.23043053,9.397e-05,2]
[420860588,1776651033119,-150.0,9.397e-05,2]
[420860589,1776651033129,-151.08036204,9.397e-05,2]
[420860590,1776651033138,-150.0,9.397e-05,2]
[420860591,1776651033148,-186.16398824,9.397e-05,2]
[420860592,1776651033157,-150.0,9.397e-05,2]
[420860593,1776651033167,-150.34467253,9.397e-05,2]
[420860594,1776651033176,-150.0,9.397e-05,2]
[420860595,1776651033185,-183.56823945,9.397e-05,2]
[420860596,1776651033195,-3028.05,9.401e-05,2]
[420860597,1776651033205,-255.0,9.408e-05,2]
[420860598,1776651033215,-150.0,9.42e-05,2]
[420860599,1776651033224,-338.24258581,9.675e-05,2]
[420860600,1776651033233,-150.0,9.72e-05,2]
[420860601,1776651033242,-2000.0,9.726e-05,2]
[420860602,1776651033252,-1600.0,9.9e-05,3]
[420860603,1776651033261,-151.0,0.0001,2]
[420860604,1776651033270,-2200.0,0.0001,3]
[420860605,1776651033280,-151.94145393,0.0001,2]
[420860606,1776651033289,-1215.0,0.00010115,5]
[420860607,1776651033299,-1378.0,0.00010138,3]
[420860608,1776651033308,-4901.89,0.0001014,2]
[420860609,1776651033318,-2427.19,0.0001014,2]
[420860610,1776651033327,-211.3,0.0001014,2]
[420860611,1776651033337,-165.59,0.0001014,2]
[420860612,1776651033348,-20168.04,0.0001014,2]
[420860613,1776651033359,-260.67,0.0001014,2]
[420860614,1776651033368,-2870.31,0.0001014,2]
[420860615,1776651033378,-249.61,0.0001014,2]
[420860616,1776651033387,-1600.0,0.0001014,2]
[420860617,1776651033829,-500.0,0.0001014,2]
[420860618,1776651033866,-400.54036263,0.00010182,2]
[420860619,1776651033877,-153.0,0.00010262,3]
[420860620,1776651033886,-57643.7618372,0.00010346,2]
[420860621,1776651033895,-258.0,0.00010349,2]
[420860622,1776651033905,-151.0,0.00010351,2]
[420860623,1776651033915,-151.0,0.00010351,2]
[420860624,1776651033924,-500.0,0.00010373,2]
[420860625,1776651033934,-500.79027363,0.00010373,2]
[420860626,1776651033944,-151.0,0.00010373,2]
[420860627,1776651033953,-409.33040233,0.00010379,2]
[420860628,1776651033963,-903340.98768349,0.00010399,2]
[420860629,1776651033976,-11325.90103013,0.00010399,2]
[420860630,1776651033988,-22563.26918874,0.00010399,2]
[420860631,1776651033999,-874.59964105,0.00010399,2]
[420860632,1776651034011,-297.03163662,0.00010399,2]
[420860633,1776651034038,-2182.37961044,0.00010399,2]
[420860639,1776651037763,-31524.74727275,0.00010399,2]
[420860640,1776651037977,-2742.85378632,0.00010399,2]
[420860641,1776651037990,-1139.21132138,0.00010399,2]
[420860642,1776651038003,-1256.40417357,0.00010399,2]
[420860678,1776651042323,-2283.55768749,0.00010399,2]
[420860688,1776651043321,-492.12843325,0.00010399,2]
[420860689,1776651043347,-457.73982913,0.00010399,2]
[420860690,1776651043358,-1435.85234584,0.00010399,2]
[420860693,1776651046008,-37536.4767598,0.00010399,2]
[420860694,1776651046018,-151.0,0.00010399,2]
[420860695,1776651046027,-151.0,0.00010399,2]
[420860696,1776651046037,-151.0,0.00010399,2]
[420860697,1776651046046,-152.60518649,0.00010399,2]
[420860698,1776651046056,-12601.92900098,0.00010433,2]
[420860699,1776651046066,-167.65,0.00010444,2]
[420860700,1776651046075,-299.99,0.00010475,2]
[420860701,1776651046084,-467.87,0.00010475,2]
[420860702,1776651046093,-150.99,0.00010475,2]
[420860703,1776651046103,-623.0,0.00010671,2]
[420860704,1776651046112,-1352.554,0.00010671,2]
[420860705,1776651046122,-1265.0,0.00010671,2]
[420860706,1776651046132,-928.466,0.00010671,2]
[420860707,1776651046142,-1219.018,0.00010671,2]
[420860709,1776651046151,-6030.0,0.00010671,2]
[420860710,1776651046161,-2474.0,0.00010671,2]
[420860711,1776651046171,-9453.0,0.00010685,2]
[420860712,1776651046181,-49099.83053849,0.000107,2]
[420860713,1776651046190,-12862.0618103,0.00010746,2]
[420860714,1776651046200,-500.0,0.00010795,2]
[420860715,1776651046210,-2000.0,0.00010807,2]
[420860716,1776651046220,-169.99,0.00010816,2]
[420860717,1776651046230,-3780.0,0.00010855,2]
[420860718,1776651046239,-1378.0,0.00010879,3]
[420860719,1776651046249,-500.0,0.00010958,2]
[420860720,1776651046259,-500.0,0.00010958,3]
[420860721,1776651046269,-500.0,0.00010958,4]
[420860722,1776651046279,-500.0,0.00010958,5]
[420860723,1776651046288,-500.0,0.00010958,6]
[420860724,1776651046298,-500.0,0.00010958,7]
[420860725,1776651046308,-500.0,0.00010958,8]
[420860726,1776651046318,-500.0,0.00010958,9]
[420860727,1776651046328,-500.0,0.00010958,10]
[420860728,1776651046338,-500.0,0.00010959,2]
[420860729,1776651046347,-3240.0,0.00010959,2]
[420860730,1776651046357,-150.0,0.00010959,2]
[420860731,1776651046367,-150.0,0.00010959,2]
[420860732,1776651046376,-152.0,0.00010991,7]
[420860733,1776651046386,-152.0,0.00010991,7]
[420860734,1776651046395,-152.0,0.00011002,7]
[420860735,1776651046405,-152.0,0.00011002,7]
[420860736,1776651046415,-160.0,0.00011074,2]
[420860737,1776651046424,-686.383822,0.00011074,2]
[420860738,1776651046434,-1212.767644,0.00011074,2]
[420860739,1776651046443,-337.181373,0.00011074,2]
[420860740,1776651046453,-160.0,0.00011074,2]
[420860741,1776651046463,-1590.837288,0.00011074,2]
[420860742,1776651046473,-3021.674577,0.00011074,2]
[420860743,1776651046482,-1108.05798122,0.00011099,2]
[420860744,1776651046492,-1108.05798116,0.00011099,2]
[420860745,1776651046502,-175.91,0.00011122,2]
[420860746,1776651046511,-160.0,0.00011172,2]
[420860747,1776651046521,-250.341409,0.00011172,2]